Cogmind - Beta 13 @@@ ROGUE MODE // 2024.04.21 @ 21:19:14 Player: ThemBee Result: Destroyed by Y-54 Guardian with Flak Gun Performance ------------- Evolutions (4) 2000 Regions Visited (14) 2800 Robots Destroyed (83) 415 Value Destroyed (4837) 4837 Prototype IDs (7) 140 Alien Tech Used (0) 0 Bonus (4342) 4342 TOTAL SCORE: 14534 Bonus ------- High Alert Combat Kills 386 Follower Combat Kills 1656 Entered Garrisons 800 Used RIF Installer 1500 Cogmind --------- Core Integrity 0/850 Matter 300/300 Energy 94/100 System Corruption 11% Temperature Cool (18) Movement Core (50) Location -6/Garrison Parts ------- > --- POWER (1) -------- (None) > --- PROPULSION (4) --- (None) > --- UTILITY (7) ------ Enhanced Optical Array > --- WEAPON (3) ------- (None) > --- INVENTORY (5) ---- Light Angular Momentum Engine F-cell Engine Relay Coupler [Swarmer] (39) Relay Coupler [Grunt] (23) Relay Coupler [Hunter] (19) Peak State ------------ > --- POWER ------------ Light Angular Momentum Engine > --- PROPULSION ------- Heavy Treads Heavy Treads > --- UTILITY ---------- Huge Storage Unit Improved Trap Scanner Enhanced Optical Array Improved Medium Armor Plating Improved Hacking Suite Relay Coupler [NC] Relay Coupler [Hunter] > --- WEAPON ----------- Greatsword > --- INVENTORY -------- Angular Momentum Engine Light Angular Momentum Engine F-cell Engine Medium Treads Heavy Treads Advanced Sensor Array Improved Medium Armor Plating Relay Coupler [NC] Relay Coupler [NC] Relay Coupler [Swarmer] Relay Coupler [Swarmer] Relay Coupler [Swarmer] Relay Coupler [Cutter] Relay Coupler [Grunt] Relay Coupler [Grunt] Relay Coupler [Grunt] Relay Coupler [Brawler] Relay Coupler [Sentry] Relay Coupler [Sentry] Relay Coupler [Demolisher] Relay Coupler [Specialist] Relay Coupler [Specialist] Improved System Restoration Module Rocket Launcher [Rating: 72] Favorites ----------- Power Improved Ion Engine Engine Improved Ion Engine Propulsion Medium Treads Treads Medium Treads Leg Aluminum Leg Utility Huge Storage Unit Device Cryofiber Web Storage Huge Storage Unit Processor Advanced Targeting Computer Hackware Relay Coupler [NC] Protection Improved Light Armor Plating Weapon Enhanced Autogun Energy Gun Heavy EM Pulse Gun Ballistic Gun Enhanced Autogun Special Weapon Remote Datajack Slashing Weapon Greatsword Build | -11 -10 -10 -9 -8 -8 -7 -7 -7 -6 -6 -6 -6 -6 -6 ------- Run | Yrd Mat Min Mat Mat Gar Fac Gar Fac Fac Was Fac Gar Fac Gar Slots Evolved 8 | . . . 2 2 . 2 . . 2 . . . . . Power . | . . . . . . . . . . . . . . . Propulsion 2 | . . . 1 1 . . . . . . . . . . Utility 5 | . . . . 1 . 2 . . 2 . . . . . Weapon 1 | . . . 1 . . . . . . . . . . . Parts Attached 93 | 6 9 . 11 13 12 7 17 1 5 2 3 . 2 5 Power 7 | 1 2 . 1 1 . . . . . . 1 . . 1 Engine 7 | 1 2 . 1 1 . . . . . . 1 . . 1 Core . | . . . . . . . . . . . . . . . Reactor . | . . . . . . . . . . . . . . . Propulsion 25 | 2 3 . 4 4 3 4 1 . . 2 1 . . 1 Treads 9 | . . . . . . 4 1 . . 2 1 . . 1 Leg 16 | 2 3 . 4 4 3 . . . . . . . . . Wheel . | . . . . . . . . . . . . . . . Hover . | . . . . . . . . . . . . . . . Flight . | . . . . . . . . . . . . . . . Utility 27 | 1 2 . 1 4 1 3 6 . 5 . 1 . 2 1 Device 5 | . . . . 1 1 1 . . 2 . . . . . Storage 4 | 1 1 . . 1 . 1 . . . . . . . . Processor 2 | . . . . 1 . . . . . . . . 1 . Hackware 5 | . . . . . . . 2 . 2 . . . 1 . Protection 11 | . 1 . 1 1 . 1 4 . 1 . 1 . . 1 Artifact . | . . . . . . . . . . . . . . . Weapon 34 | 2 2 . 5 4 8 . 10 1 . . . . . 2 Energy Gun 9 | 2 1 . 3 1 . . . . . . . . . 2 Energy Cannon . | . . . . . . . . . . . . . . . Ballistic Gun 14 | . 1 . 2 3 4 . 4 . . . . . . . Ballistic Cannon . | . . . . . . . . . . . . . . . Launcher . | . . . . . . . . . . . . . . . Special Weapon 2 | . . . . . . . 1 1 . . . . . . Impact Weapon . | . . . . . . . . . . . . . . . Slashing Weapon 9 | . . . . . 4 . 5 . . . . . . . Piercing Weapon . | . . . . . . . . . . . . . . . Special Melee Weapon . | . . . . . . . . . . . . . . . Unidentified Prototypes 2 | . . . . 2 . . . . . . . . . . Corrupted Parts 2 | . . . . . . 1 1 . . . . . . . System Corruption 20 | . . . . . . 10 10 . . . . . . . Parts Lost 17 | . 1 . . . 1 . 1 . . . 1 . . 13 Power 1 | . . . . . . . . . . . . . . 1 Propulsion 4 | . 1 . . . . . . . . . . . . 3 Utility 8 | . . . . . 1 . 1 . . . . . . 6 Weapon 4 | . . . . . . . . . . . 1 . . 3 Highest Loss Streak 13 | . 1 . . . 1 . 1 . . . 1 . . 13 To Critical Strikes . | . . . . . . . . . . . . . . . Average Slot Usage (%) 87 | . 88 100 96 98 99 93 98 92 91 82 76 73 73 68 Engine 7 | . 13 14 11 9 9 7 7 7 6 6 6 6 6 5 Treads 12 | . . . . . . 19 30 30 26 15 13 13 13 11 Leg 11 | . 25 28 30 35 36 4 . . . . . . . . Device 6 | . . . . 2 8 15 4 . 6 13 13 13 6 5 Storage 7 | . 14 14 11 9 9 7 7 7 6 6 6 6 6 6 Processor 3 | . . . . 5 9 7 7 7 5 . . . 4 6 Hackware 8 | . . . . . . . 9 15 13 13 13 13 19 18 Protection 9 | . 6 14 11 9 . 7 6 7 12 13 13 13 8 5 Energy Gun 3 | . 22 14 17 . . . . . . . . . . . Ballistic Gun 9 | . 4 14 15 25 25 23 16 1 . . . . . . Special Weapon 1 | . . . . . . . . 5 6 6 3 . . . Slashing Weapon 3 | . . . . . 1 . 3 7 6 6 6 6 6 4 Naked Turns . | . . . . . . . . . . . . . . . Heaviest Build 108 | 12 23 23 31 43 43 101 101 98 105 105 108 108 108 108 Greatest Support 140 | 20 20 20 30 48 53 104 112 112 112 140 140 140 140 140 Greatest Overweight (x) 2 | 1 2 1 1 . . 1 . . . . . . . 1 Average Overweight (x) . | . . 1 . . . . . . . . . . . . Largest Inventory Capacity 25 | 8 10 10 10 15 15 25 25 25 25 25 25 25 25 25 Average Capacity 20 | 7 9 10 10 10 15 19 25 25 25 25 25 25 25 24 Most Carried 25 | 2 10 10 10 10 15 16 25 23 23 25 25 25 25 25 Average Carried 18 | 1 6 10 9 9 14 14 22 23 21 23 23 23 24 23 Final Capacity 25 | 8 10 10 10 15 15 25 25 25 25 25 25 25 25 5 Final Carried 25 | 2 10 10 10 10 15 16 23 23 20 25 22 25 25 5 Class Distribution -------------------- 35% | Mutant 26% | Bothacker-Mutant 14% | Scavenger-Gunner 9% | Scavenger-Tank 7% | Bothacker-Gunner Dominant Class ---------------- Mutant | -10/Materials Mutant | -10/Mines Scavenger-Tank | -9/Materials Scavenger-Gunner | -8/Materials Scavenger-Gunner | -8/Garrison Gunner | -7/Factory Bothacker-Gunner | -7/Garrison Bothacker-Mutant | -7/Factory Bothacker-Mutant | -6/Factory Bothacker-Mutant | -6/Waste Bothacker-Mutant | -6/Factory Mutant | -6/Garrison Mutant | -6/Factory Mutant | -6/Garrison Resources | -11 -10 -10 -9 -8 -8 -7 -7 -7 -6 -6 -6 -6 -6 -6 ----------- Run | Yrd Mat Min Mat Mat Gar Fac Gar Fac Fac Was Fac Gar Fac Gar Matter Collected 2704 | 191 139 . 234 631 426 320 494 . 159 20 30 . 20 40 Remotely . | . . . . . . . . . . . . . . . Salvage Created 3374 | . 221 . 514 775 499 425 467 . 154 . 175 102 . 42 Parts 174 | . 13 . 29 53 19 21 25 . 3 . 5 2 . 4 Haulers Intercepted 7 | . 1 . 2 2 . . . . . . 2 . . . Recyclers Shooed 1 | . . . . 1 . . . . . . . . . . Parts Field Recycled . | . . . . . . . . . . . . . . . Retrieved Matter . | . . . . . . . . . . . . . . . Parts Self-Destructed . | . . . . . . . . . . . . . . . Prevented . | . . . . . . . . . . . . . . . Kills | -11 -10 -10 -9 -8 -8 -7 -7 -7 -6 -6 -6 -6 -6 -6 ------- Run | Yrd Mat Min Mat Mat Gar Fac Gar Fac Fac Was Fac Gar Fac Gar Combat Hostiles Destroyed 71 | . 6 . 9 20 14 7 10 . 2 . . . . 3 Melee 5 | . . . . . . . . . 2 . . . . 3 Guns 66 | . 6 . 9 20 14 7 10 . . . . . . . Classes Destroyed 10 | . 3 . 2 4 . 1 . . . . . . . . Worker 2 | . . . 1 . . 1 . . . . . . . . Builder 1 | . . . . 1 . . . . . . . . . . Hauler 7 | . 1 . 2 2 . . . . . . 2 . . . Operator 2 | . . . . 2 . . . . . . . . . . Swarmer 24 | . 3 . . 11 6 . 3 . . . . . . 1 Grunt 32 | . 3 . 8 4 7 3 5 . 2 . . . . . Brawler 1 | . . . . 1 . . . . . . . . . . Duelist 1 | . . . . 1 . . . . . . . . . . Sentry 10 | . . . 1 3 1 3 2 . . . . . . . Programmer 3 | . . . . . . 1 . . . . . . . 2 Best Kill Streak 6 | . 3 . 4 6 5 4 4 . 1 . 1 . . 2 Combat Bots Only 6 | . 3 . 3 6 5 4 4 . 1 . . . . 2 Max Kills in Single Turn 2 | . 1 . 2 2 2 2 1 . 1 . 1 . . 1 Gunslinging 1 | . . . . 1 . 1 . . . . . . . . Exploded . | . . . . . . . . . . . . . . . Melee 1 | . . . . . . . . . 1 . . . . 1 Uniques/NPCs Destroyed . | . . . . . . . . . . . . . . . Combat | -11 -10 -10 -9 -8 -8 -7 -7 -7 -6 -6 -6 -6 -6 -6 -------- Run | Yrd Mat Min Mat Mat Gar Fac Gar Fac Fac Was Fac Gar Fac Gar Hostile Shots Fired 650 | . 37 . 17 57 41 75 63 . 31 . . 7 9 313 Missed 196 | . 6 . 6 17 8 37 18 . 5 . . 2 5 92 Damage Taken 6219 | . 307 . 213 526 457 411 576 . 500 . 244 104 32 2849 Core 1152 | . 39 . 11 55 50 43 102 . 79 . . 8 . 765 Absorbed by Shields 23 | . . . . . . . . . . . . . . 23 Regen/Repaired (Parts) 327 | . . . . . . . . . . 41 258 13 15 . Core Remaining (%) 88 | 100 . 84 97 . 80 . . 79 . . . . . . Volleys Fired 180 | . 27 . 23 46 31 16 26 . 9 . . . . 2 Largest 3 | . 2 . 3 3 3 3 3 . 1 . . . . 1 Hottest 113 | . 105 . 113 107 75 75 75 . 5 . . . . 69 Shots Fired 473 | . 44 . 65 138 93 47 75 . 9 . . . . 2 Gun 462 | . 44 . 65 138 93 47 73 . . . . . . 2 Cannon . | . . . . . . . . . . . . . . . Launcher . | . . . . . . . . . . . . . . . Special 11 | . . . . . . . 2 . 9 . . . . . Kinetic 384 | . 7 . 30 134 93 47 73 . . . . . . . Thermal 43 | . 37 . . 4 . . . . . . . . . 2 Explosive . | . . . . . . . . . . . . . . . Electromagnetic 35 | . . . 35 . . . . . . . . . . . Robot Hit Streak 24 | . 7 . 11 10 20 14 24 . 21 . . . . 1 Robot Miss Streak 5 | . 3 . 3 3 5 2 4 . 1 . . . . 1 Penetration Max . | . . . . . . . . . . . . . . . Secondary Targets 14 | . 1 . 1 3 5 2 2 . . . . . . . Max Gunslinging Chain 1 | . 1 . 1 1 1 1 1 . . . . . . . Shots Hit Robots 340 | . 27 . 40 88 60 37 60 . 15 1 4 3 . 5 Core Hits 132 | . 10 . 17 36 23 17 22 . 3 . 2 1 . 1 Critical Kills . | . . . . . . . . . . . . . . . Critical Parts Destroyed 2 | . . . . . 2 . . . . . . . . . Critical Strikes 13 | . . . 1 2 2 . . . 3 . 2 . . 3 Burn 1 | . . . . 1 . . . . . . . . . . Destroy 3 | . . . . 1 2 . . . . . . . . . Corrupt 1 | . . . 1 . . . . . . . . . . . Sever 8 | . . . . . . . . . 3 . 2 . . 3 Melee Attacks 66 | . . . . . 6 . 20 . 14 1 5 11 1 8 Impact . | . . . . . . . . . . . . . . . Slashing 66 | . . . . . 6 . 20 . 14 1 5 11 1 8 Piercing . | . . . . . . . . . . . . . . . Sneak Attacks 2 | . . . . . . . . . . . 2 . . . Combat Hostiles . | . . . . . . . . . . . . . . . Follow-up Attacks . | . . . . . . . . . . . . . . . Damage Inflicted 6649 | . 333 . 705 1598 1092 700 993 . 342 24 319 217 . 326 Guns 5305 | . 333 . 602 1567 1092 700 993 . . . . . . 18 Cannons . | . . . . . . . . . . . . . . . Explosions 103 | . . . 103 . . . . . . . . . . . Melee 1108 | . . . . . . . . . 342 24 319 217 . 206 Ramming 133 | . . . . 31 . . . . . . . . . 102 Kinetic 4587 | . 63 . 222 1517 1092 700 993 . . . . . . . Thermal 441 | . 270 . 103 50 . . . . . . . . . 18 Explosive . | . . . . . . . . . . . . . . . Electromagnetic 380 | . . . 380 . . . . . . . . . . . Impact . | . . . . . . . . . . . . . . . Slashing 1108 | . . . . . . . . . 342 24 319 217 . 206 Piercing . | . . . . . . . . . . . . . . . Highest Corruption 21 | . . . . . . 11 21 21 . . . . . 11 Average Corruption 11 | . . . . . . 10 11 21 . . . . . 8 Corruption Purged . | . . . . . . . . . . . . . . . Corruption Blocked . | . . . . . . . . . . . . . . . Effects 39 | . . . . . . 9 21 6 . . . . . 3 Message Errors 12 | . . . . . . 5 3 3 . . . . . 1 Matter Fused 9 | . . . . . . 2 5 2 . . . . . . Heat Flow Errors 5 | . . . . . . 1 3 1 . . . . . . Energy Discharges 3 | . . . . . . . 3 . . . . . . . Parts Rejected 1 | . . . . . . . 1 . . . . . . . Data Loss (minor) 2 | . . . . . . . 1 . . . . . . 1 Data Loss (major) 1 | . . . . . . . 1 . . . . . . . Misfires 2 | . . . . . . . 2 . . . . . . . Alerts 1 | . . . . . . . 1 . . . . . . . Misdirections 1 | . . . . . . . . . . . . . . 1 Weapon Failures 2 | . . . . . . 1 1 . . . . . . . Overload Shots . | . . . . . . . . . . . . . . . Overflow Damage 15 | . . . . . . . . . . . . 15 . . Projectiles . | . . . . . . . . . . . . . . . Explosions . | . . . . . . . . . . . . . . . Melee 15 | . . . . . . . . . . . . 15 . . Knockbacks 1 | . . . . . . . . . . . . . . 1 Impact 1 | . . . . . . . . . . . . . . 1 Kinetic . | . . . . . . . . . . . . . . . Secondary . | . . . . . . . . . . . . . . . Self-Inflicted Damage 78 | . . . 78 . . . . . . . . . . . Shots 2 | . . . 2 . . . . . . . . . . . Rammed 11 | . . . . . . . . . . . . . . 11 Targets Rammed 19 | . 1 . . 4 . . . . . . . . . 14 Kicked 5 | . 1 . . 4 . . . . . . . . . . Crushed 3 | . . . . . . . . . . . . . . 3 Highest Temperature 409 | . 409 . 269 224 272 . 240 85 . . . . . 73 Average Temperature 90 | . 155 . 71 67 101 . 86 50 . . . . . 30 Received Heat Transfer 1515 | . 81 . 78 171 171 96 183 . 132 . . 9 12 582 Effects 7 | . 4 . 3 . . . . . . . . . . . Shutdowns 1 | . 1 . . . . . . . . . . . . . Energy Bleed 1 | . 1 . . . . . . . . . . . . . Interference 3 | . . . 3 . . . . . . . . . . . Short Circuit 1 | . 1 . . . . . . . . . . . . . Damage (minor) 1 | . 1 . . . . . . . . . . . . . Siege Activations . | . . . . . . . . . . . . . . . Robots Corrupted . | . . . . . . . . . . . . . . . Combat Hostiles . | . . . . . . . . . . . . . . . Parts Fried 1 | . . . 1 . . . . . . . . . . . Impact Corruptions . | . . . . . . . . . . . . . . . Robots Melted . | . . . . . . . . . . . . . . . Combat Hostiles . | . . . . . . . . . . . . . . . Parts Melted 2 | . 1 . 1 . . . . . . . . . . . Heat Transferred 933 | . 611 . 100 185 . . . . . . . . . 37 Parts Sabotaged . | . . . . . . . . . . . . . . . Parts Stolen . | . . . . . . . . . . . . . . . Parts Stripped . | . . . . . . . . . . . . . . . Power Chain Reactions 2 | . . . 2 . . . . . . . . . . . Alert | -11 -10 -10 -9 -8 -8 -7 -7 -7 -6 -6 -6 -6 -6 -6 ------- Run | Yrd Mat Min Mat Mat Gar Fac Gar Fac Fac Was Fac Gar Fac Gar Peak Influence 1760 | . 178 69 329 431 776 589 881 462 315 72 927 1760 1366 1071 Initial 924 | . . 69 26 91 280 407 412 462 226 72 36 648 924 823 Average 545 | . 90 69 158 223 558 445 708 462 197 60 236 1436 1057 939 Maximum Alert Level 5 | . . . 1 2 3 2 3 2 1 . 3 5 4 3 Low Security (%) 31 | 100 100 100 61 39 . . . . 42 100 71 . . . Level 1 17 | . . . 38 56 13 . . . 57 . 17 . . . Level 2 16 | . . . . 3 63 100 33 100 . . 6 . . . Level 3 21 | . . . . . 22 . 66 . . . 5 13 64 100 Level 4 8 | . . . . . . . . . . . . 50 35 . Level 5 4 | . . . . . . . . . . . . 35 . . High Security . | . . . . . . . . . . . . . . . Max Security . | . . . . . . . . . . . . . . . Squads Dispatched 21 | . 1 . 1 5 . 5 . . . . 6 . 3 . Investigation 1 | . . . . . . . . . . . . . 1 . Extermination 2 | . . . . . . 1 . . . . . . 1 . Reinforcement 6 | . 1 . 1 . . 1 . . . . 3 . . . Assault 1 | . . . . . . . . . . . . . 1 . Garrison 11 | . . . . 5 . 3 . . . . 3 . . . Intercept . | . . . . . . . . . . . . . . . Searches Triggered . | . . . . . . . . . . . . . . . Construction Impeded 1 | . . . . . . . . . . . 1 . . . Haulers Reinforced 1 | . . . . . . . . . . . 1 . . . Active Scanning Responses . | . . . . . . . . . . . . . . . Cargo Convoy Interrupts . | . . . . . . . . . . . . . . . Stealth | -11 -10 -10 -9 -8 -8 -7 -7 -7 -6 -6 -6 -6 -6 -6 --------- Run | Yrd Mat Min Mat Mat Gar Fac Gar Fac Fac Was Fac Gar Fac Gar Distress Signals 10 | . 4 . 3 2 . . . . . . 1 . . . Communications Jammed . | . . . . . . . . . . . . . . . Distress Signals . | . . . . . . . . . . . . . . . Times Spotted 168 | . 15 . 19 31 15 9 14 . 10 1 11 17 3 23 Peak Tracking Total 16 | . 5 . 6 7 4 4 5 . 3 1 5 7 2 16 Tactical Retreats 11 | . . . 2 3 1 . 2 . 2 . . . . 1 Traps | -11 -10 -10 -9 -8 -8 -7 -7 -7 -6 -6 -6 -6 -6 -6 ------- Run | Yrd Mat Min Mat Mat Gar Fac Gar Fac Fac Was Fac Gar Fac Gar Traps Triggered 7 | . 1 . . . 3 1 1 . 1 . . . . . Indirectly . | . . . . . . . . . . . . . . . Trap Hack Attempts . | . . . . . . . . . . . . . . . Triggered . | . . . . . . . . . . . . . . . Disarmed . | . . . . . . . . . . . . . . . Reprogrammed . | . . . . . . . . . . . . . . . Reused . | . . . . . . . . . . . . . . . Traps Extracted . | . . . . . . . . . . . . . . . Installed 1 | . . . . . . . 1 . . . . . . . Triggered . | . . . . . . . . . . . . . . . Most Traps Carried 4 | . . . . . . . 4 3 3 3 3 2 . . Machines | -11 -10 -10 -9 -8 -8 -7 -7 -7 -6 -6 -6 -6 -6 -6 ---------- Run | Yrd Mat Min Mat Mat Gar Fac Gar Fac Fac Was Fac Gar Fac Gar Machines Disabled 35 | . . . 1 2 3 . 5 . . . 7 3 12 2 Max in Single Turn 1 | . . . 1 1 1 . 1 . . . . 1 . 1 Garrison Relay 10 | . . . . . 3 . 2 . . . . 3 . 2 Machines Repaired . | . . . . . . . . . . . . . . . Machines Dismantled . | . . . . . . . . . . . . . . . Machines Sabotaged . | . . . . . . . . . . . . . . . Overloaded Fab Kills . | . . . . . . . . . . . . . . . Hacking | -11 -10 -10 -9 -8 -8 -7 -7 -7 -6 -6 -6 -6 -6 -6 --------- Run | Yrd Mat Min Mat Mat Gar Fac Gar Fac Fac Was Fac Gar Fac Gar Machines Accessed 33 | . 1 1 3 6 3 2 1 . 5 . 6 1 4 . Terminals 21 | . 1 1 2 5 3 . 1 . 2 . 2 1 3 . Fabricators 2 | . . . . . . . . . 1 . 1 . . . Repair Stations 3 | . . . 1 . . . . . 1 . 1 . . . Recycling Units 1 | . . . . . . 1 . . . . . . . . Scanalyzers 2 | . . . . . . . . . 1 . 1 . . . Garrison Access 4 | . . . . 1 . 1 . . . . 1 . 1 . Total Hacks 74 | . 2 2 5 22 5 3 2 . 10 . 14 2 7 . Successful 30 | . . 1 3 8 2 3 . . 3 . 4 1 5 . Failed 44 | . 2 1 2 14 3 . 2 . 7 . 10 1 2 . Catastrophic 10 | . . . . 2 1 . 1 . 1 . 3 1 1 . Database Lockouts . | . . . . . . . . . . . . . . . Manual 37 | . . 2 5 10 1 1 2 . 8 . 4 1 3 . Terminals 50 | . 2 2 4 20 5 . 2 . 4 . 3 2 6 . Fabricators 4 | . . . . . . . . . 2 . 2 . . . Repair Stations 9 | . . . 1 . . . . . 2 . 6 . . . Recycling Units 2 | . . . . . . 2 . . . . . . . . Scanalyzers 4 | . . . . . . . . . 2 . 2 . . . Garrison Access 5 | . . . . 2 . 1 . . . . 1 . 1 . Terminal Hacks 12 | . . 1 . 6 2 . . . . . . 1 2 . Prototype ID Bank 2 | . . 1 . . . . . . . . . . 1 . Open Door 1 | . . . . . 1 . . . . . . . . . Open DSF 1 | . . . . . . . . . . . . . 1 . Alert Level 1 | . . . . 1 . . . . . . . . . . Unreport Threat 1 | . . . . 1 . . . . . . . . . . Locate Traps 1 | . . . . 1 . . . . . . . . . . Hauler Manifests 1 | . . . . 1 . . . . . . . . . . Zone Layout 2 | . . . . 2 . . . . . . . . . . Garrison Registry 1 | . . . . . . . . . . . . 1 . . Patrol Navigation 1 | . . . . . 1 . . . . . . . . . Fabricator Hacks 1 | . . . . . . . . . 1 . . . . . Network Status 1 | . . . . . . . . . 1 . . . . . Repair Station Hacks 2 | . . . . . . . . . . . 2 . . . Scan Component 1 | . . . . . . . . . . . 1 . . . Repair 1 | . . . . . . . . . . . 1 . . . Recycling Unit Hacks 1 | . . . . . . 1 . . . . . . . . Report Inventory 1 | . . . . . . 1 . . . . . . . . Scanalyzer . | . . . . . . . . . . . . . . . Garrison Access Hacks 4 | . . . . 1 . 1 . . . . 1 . 1 . Unlock Access 4 | . . . . 1 . 1 . . . . 1 . 1 . Unauthorized Hacks 10 | . . . 3 1 . 1 . . 2 . 1 . 2 . Terminals 6 | . . . 2 1 . . . . 1 . . . 2 . Botnet 6 | . . . 2 1 . . . . 1 . . . 2 . Fabricators . | . . . . . . . . . . . . . . . Repair Stations 2 | . . . 1 . . . . . . . 1 . . . Mechanics 2 | . . . 1 . . . . . . . 1 . . . Recycling Units 1 | . . . . . . 1 . . . . . . . . Recyclers 1 | . . . . . . 1 . . . . . . . . Scanalyzers 1 | . . . . . . . . . 1 . . . . . Researchers 1 | . . . . . . . . . 1 . . . . . Garrison Access . | . . . . . . . . . . . . . . . Data Cores Recovered 2 | . . . . 2 . . . . . . . . . . Used . | . . . . . . . . . . . . . . . Hacking Detections 26 | . 1 1 2 5 2 1 1 . 5 . 4 1 3 . Full Trace Events 4 | . 1 . . 1 . . 1 . . . . . 1 . Feedback Events . | . . . . . . . . . . . . . . . Feedback Blocked . | . . . . . . . . . . . . . . . Robot Schematics Acquired . | . . . . . . . . . . . . . . . Robots Built . | . . . . . . . . . . . . . . . Authchips . | . . . . . . . . . . . . . . . Time . | . . . . . . . . . . . . . . . Total Robot Build Rating . | . . . . . . . . . . . . . . . Part Schematics Acquired . | . . . . . . . . . . . . . . . Parts Built . | . . . . . . . . . . . . . . . Authchips . | . . . . . . . . . . . . . . . Time . | . . . . . . . . . . . . . . . Total Part Build Rating . | . . . . . . . . . . . . . . . Parts Repaired 1 | . . . . . . . . . . . 1 . . . Time 56 | . . . . . . . . . . . 56 . . . Parts Recycled . | . . . . . . . . . . . . . . . Recycled Matter . | . . . . . . . . . . . . . . . Retrieved Matter . | . . . . . . . . . . . . . . . Retrieved Components . | . . . . . . . . . . . . . . . Parts Scanalyzed . | . . . . . . . . . . . . . . . Part Schematics Acquired . | . . . . . . . . . . . . . . . Parts Damaged . | . . . . . . . . . . . . . . . Bothacking | -11 -10 -10 -9 -8 -8 -7 -7 -7 -6 -6 -6 -6 -6 -6 ------------ Run | Yrd Mat Min Mat Mat Gar Fac Gar Fac Fac Was Fac Gar Fac Gar Used RIF Installer 3 | . . . . . 1 . 1 . . . . 1 . . Hotswap 1 | . . . . . . . 1 . . . . . . . Autooverride 1 | . . . . . . . . . . . . 1 . . Robots Hacked 7 | . . . . . . . 1 . 6 . . . . . Non-combat 3 | . . . . . . . . . 3 . . . . . Combat 4 | . . . . . . . 1 . 3 . . . . . Robot Hacks Applied 9 | . . . . . . . 1 . 8 . . . . . map_walls 3 | . . . . . . . . . 3 . . . . . relay_feed 1 | . . . . . . . . . 1 . . . . . find_garrison 1 | . . . . . . . . . 1 . . . . . amplify_resonance 2 | . . . . . . . 1 . 1 . . . . . formatsys_high 2 | . . . . . . . . . 2 . . . . . Relay Couplers Released 38 | . . . . . 13 . 7 . . . . 11 . 7 Machine Destruction 38 | . . . . . 13 . 7 . . . . 11 . 7 Attached 4 | . . . . . . . 2 . 2 . . . . . Fabnet Peak Effective % . | . . . . . . . . . . . . . . . Robots Rewired . | . . . . . . . . . . . . . . . Allies Hacked . | . . . . . . . . . . . . . . . Hacks Repelled . | . . . . . . . . . . . . . . . Allies | -11 -10 -10 -9 -8 -8 -7 -7 -7 -6 -6 -6 -6 -6 -6 -------- Run | Yrd Mat Min Mat Mat Gar Fac Gar Fac Fac Was Fac Gar Fac Gar Total Allies 24 | . . . . . 1 . . . 2 21 . . . . Largest Group 22 | . . . . . 1 1 . . 1 22 21 13 6 5 Highest-Rated Group 932 | . . . . . 39 39 . . 41 932 881 588 263 213 Highest-Rated Ally 50 | . . . . . 39 39 . . 41 50 50 50 50 50 Total Orders . | . . . . . . . . . . . . . . . Ally Attacks 202 | . . . . . 9 8 . . 8 10 73 63 14 17 Total Damage 10168 | . . . . . 30 95 . . 246 339 4429 2819 784 1426 Kills 67 | . . . . . . . . . 3 1 27 24 5 7 Allies Corrupted 2 | . . . . . . . . . . . . 1 1 . Allies Melted . | . . . . . . . . . . . . . . . Intel | -11 -10 -10 -9 -8 -8 -7 -7 -7 -6 -6 -6 -6 -6 -6 ------- Run | Yrd Mat Min Mat Mat Gar Fac Gar Fac Fac Was Fac Gar Fac Gar Robot Analysis Total . | . . . . . . . . . . . . . . . Derelict Logs Recovered . | . . . . . . . . . . . . . . . Drone Launches . | . . . . . . . . . . . . . . . Drone Recoveries . | . . . . . . . . . . . . . . . Exploration | -11 -10 -10 -9 -8 -8 -7 -7 -7 -6 -6 -6 -6 -6 -6 ------------- Run | Yrd Mat Min Mat Mat Gar Fac Gar Fac Fac Was Fac Gar Fac Gar Turns Passed 6651 | 76 325 126 582 566 635 262 726 109 748 281 539 824 495 357 Spaces Moved 3548 | 52 144 61 226 319 406 124 352 68 387 165 319 477 298 150 Core 9 | 8 . . . . . . . . . . . . . 1 Treads 2309 | . . . . . . 94 352 68 387 165 319 477 298 149 Legs 1230 | 44 144 61 226 319 406 30 . . . . . . . . Wheels . | . . . . . . . . . . . . . . . Hover . | . . . . . . . . . . . . . . . Flight . | . . . . . . . . . . . . . . . Fastest Speed 50 | 50 120 190 120 120 120 120 160 160 160 160 160 160 160 50 Average Speed 152 | 115 146 190 180 120 120 172 160 160 160 160 160 160 160 160 Slowest Speed 260 | 120 260 190 190 120 120 240 160 160 160 160 160 160 160 240 Overloaded Moves . | . . . . . . . . . . . . . . . Propulsion Burnouts . | . . . . . . . . . . . . . . . Robots Hopped . | . . . . . . . . . . . . . . . Cave-ins Triggered . | . . . . . . . . . . . . . . . Exploration Rate (%) 28 | 3 31 15 26 28 61 5 44 3 10 85 14 70 9 23 Regions Visited 14 Branch Regions 1 Pre-discovered Areas . | . . . . . . . . . . . . . . . Known Exits Taken 4 | . . . . 1 . 1 . . . . 1 . 1 . Unknown Exits Taken 5 | 1 1 1 1 . . . . 1 . . . . . . Scrap Searched . | . . . . . . . . . . . . . . . Spaces Dug 10 | . . . . . . . 4 . 3 . 1 . 1 1 Terrain Destroyed 14 | . . . 4 . . . 4 . 3 . 1 . 1 1 Melee 10 | . . . . . . . 4 . 3 . 1 . 1 1 Projectile . | . . . . . . . . . . . . . . . AOE 4 | . . . 4 . . . . . . . . . . . Terrain Rammed . | . . . . . . . . . . . . . . . Walls Destroyed . | . . . . . . . . . . . . . . . Machines Disabled . | . . . . . . . . . . . . . . . Actions | -11 -10 -10 -9 -8 -8 -7 -7 -7 -6 -6 -6 -6 -6 -6 --------- Run | Yrd Mat Min Mat Mat Gar Fac Gar Fac Fac Was Fac Gar Fac Gar Total 4412 | 64 215 72 357 452 509 157 453 68 484 181 341 519 315 225 Wait 357 | 5 18 12 78 48 34 . 20 . 65 8 3 22 12 32 Move 3532 | 51 143 60 225 318 404 123 350 67 387 164 318 475 297 150 Hop . | . . . . . . . . . . . . . . . Pick Up 78 | 2 12 . 7 9 8 5 13 . 2 2 4 7 1 6 Fast Attach 22 | 6 3 . 1 4 1 2 . . 1 2 . . 1 1 Attach 24 | . 4 . 2 2 . 4 5 . 2 . 1 . 1 3 Detach 4 | . 1 . . . . . 1 . . 2 . . . . Swap 47 | . 2 . 8 7 11 1 12 1 2 . 2 . . 1 Drop 71 | . 4 . 13 14 4 6 5 . 2 2 8 4 2 7 Fire 180 | . 27 . 23 46 31 16 26 . 9 . . . . 2 Melee 66 | . . . . . 6 . 20 . 14 1 5 11 1 8 Ram 2 | . . . . . . . . . . . . . . 2 Kick 5 | . 1 . . 4 . . . . . . . . . . Crush 13 | . . . . . . . . . . . . . . 13 Escape Stasis 10 | . . . . . 10 . . . . . . . . . Rewire . | . . . . . . . . . . . . . . . Trap 1 | . . . . . . . 1 . . . . . . . Miscellaneous . | . . . . . . . . . . . . . . . Route ------- -11/Scrapyard -10/Materials -10/Mines -9/Materials -8/Materials -8/Garrison (discovered 2 exits: *Fac x2) -7/Factory -7/Garrison -7/Factory -6/Factory -6/Waste -6/Factory -6/Garrison (discovered 3 exits: *Fac x3) -6/Factory (discovered 2 exits: [*Low] / Gar) -6/Garrison History --------- Turn | Location | Event 9 | -11/Scrapyard | Discovered new exit (range 14) 77 | -11/Scrapyard | Entered Materials 171 | -10/Materials | Discovered new exit (range 16) 315 | -10/Materials | Build established: Mutant 402 | -10/Materials | Entered Mines 474 | -10/Mines | Met a Derelict bent on vengeance 496 | -10/Mines | Discovered new exit (range 8) 528 | -10/Mines | Entered Materials 528 | -9/Materials | Evolved 2 slots: Propulsion x1, Weapon x1 1011 | -9/Materials | Build established: Scavenger-Tank 1079 | -9/Materials | Discovered new exit (range 3) 1110 | -9/Materials | Entered another Materials area 1110 | -8/Materials | Evolved 2 slots: Propulsion x1, Utility x1 1229 | -8/Materials | Garrison activated, responded to threat 1540 | -8/Materials | Garrison activated, responded to threat 1675 | -8/Materials | Identified exit to Garrison 1676 | -8/Materials | Entered Garrison 1708 | -8/Garrison | Triggered checkpoint 1764 | -8/Garrison | Garrison Relay disabled 1880 | -8/Garrison | Discovered new exit (range 10) 1908 | -8/Garrison | Triggered checkpoint 1908 | -8/Garrison | Build established: Scavenger-Gunner 1953 | -8/Garrison | Garrison Relay disabled 2032 | -8/Garrison | Triggered checkpoint 2125 | -8/Garrison | Discovered new exit (range 10) 2133 | -8/Garrison | Rescued a captive Derelict 2154 | -8/Garrison | Triggered checkpoint 2198 | -8/Garrison | Garrison Relay disabled 2230 | -8/Garrison | Installed Relay Interface Framework 2311 | -8/Garrison | Entered Factory 2311 | -7/Factory | Accompanied by 1 ally 2311 | -7/Factory | Evolved 2 slots: Utility x2 2356 | -7/Factory | System corruption reached 10% 2571 | -7/Factory | Identified exit to Garrison 2573 | -7/Factory | Entered Garrison 2741 | -7/Garrison | Triggered checkpoint 2768 | -7/Garrison | Garrison Relay disabled 2915 | -7/Garrison | Triggered checkpoint 2960 | -7/Garrison | Build established: Bothacker-Gunner 2977 | -7/Garrison | Triggered checkpoint 3038 | -7/Garrison | Garrison Relay disabled 3086 | -7/Garrison | Discovered new exit (range 3) 3230 | -7/Garrison | Expanded RIF knowledge: Hotswap 3299 | -7/Garrison | Entered Factory 3346 | -7/Factory | Build established: Bothacker-Mutant 3375 | -7/Factory | Discovered new exit (range 8) 3408 | -7/Factory | Entered another Factory area 3408 | -6/Factory | Evolved 2 slots: Utility x2 4156 | -6/Factory | Sucked down chute 4156 | -6/Factory | Entered Waste 4157 | -6/Waste | Met a frightened Derelict 4157 | -6/Waste | Joined by Warlord forces that had cleared the area 4196 | -6/Waste | 1 allies followed down the chute 4276 | -6/Waste | A Compactor rumbled back to life 4277 | -6/Waste | Spotted C-40 Crusher 4280 | -6/Waste | Allies destroyed C-40 Crusher 4359 | -6/Waste | Discovered new exit (range 16) 4437 | -6/Waste | Entered Factory 4437 | -6/Factory | Accompanied by 21 allies 4514 | -6/Factory | Repaired Hvy. Treads? 4759 | -6/Factory | Lost 5 allies 4921 | -6/Factory | Identified exit to Garrison 4976 | -6/Factory | Entered Garrison 4976 | -6/Garrison | Accompanied by 13 allies 4980 | -6/Garrison | Triggered checkpoint 5114 | -6/Garrison | Build established: Mutant 5174 | -6/Garrison | Triggered checkpoint 5202 | -6/Garrison | Triggered checkpoint 5254 | -6/Garrison | Garrison Relay disabled 5352 | -6/Garrison | Triggered checkpoint 5426 | -6/Garrison | Triggered checkpoint 5444 | -6/Garrison | Discovered new exit (range 8) 5469 | -6/Garrison | Lost 4 allies 5511 | -6/Garrison | Garrison Relay disabled 5562 | -6/Garrison | Discovered new exit (range 63) 5562 | -6/Garrison | Discovered new exit (range 60) 5562 | -6/Garrison | Discovered new exit (range 26) 5696 | -6/Garrison | Triggered checkpoint 5712 | -6/Garrison | Expanded RIF knowledge: Autooverride 5749 | -6/Garrison | Garrison Relay disabled 5800 | -6/Garrison | Entered Factory 5800 | -6/Factory | Accompanied by 6 allies 6150 | -6/Factory | First assault squad dispatched 6166 | -6/Factory | Discovered new exit (range 11) 6294 | -6/Factory | Identified exit to Garrison 6295 | -6/Factory | Entered Garrison 6295 | -6/Garrison | Accompanied by 5 allies 6361 | -6/Garrison | Triggered checkpoint 6361 | -6/Garrison | Garrison Relay disabled 6414 | -6/Garrison | Garrison Relay disabled 6522 | -6/Garrison | Triggered checkpoint 6545 | -6/Garrison | Triggered checkpoint 6583 | -6/Garrison | System corruption reached 10% 6584 | -6/Garrison | Lost 4 allies 6642 | -6/Garrison | Core integrity fell below 50% 6650 | -6/Garrison | Core integrity fell below 20% 6652 | -6/Garrison | Destroyed by Y-54 Guardian with Flak Gun Last Messages --------------- 06626_ Relay Coupler [NC] destroyed. 06628_ Hvy. Laser destroyed. 06628_ Slammed into P-60 Hacker. 06629_ Imp. Medium Armor Plating destroyed. 06632_ Angular Momentum Engine destroyed. 06633_ Crushed S-27 Virus. 06633_ S-27 Virus destroyed. 06635_ R0X7PYD%H> I9 :NRW3W DFANJWX5N8FQPV 06636_ Hvy. Treads destroyed. 06636_ Imp. Trap Scanner destroyed. 06638_ Slammed into Y-54 Guardian. 06638_ Enh. Optical Array broken. 06638_ Destabilizing: Short circuit. 06639_ Imp. Hacking Suite destroyed. 06649_ Relay Coupler [Hunter] destroyed. 06651_ Y-54 Guardian suffers critical hit (Burn). 06651_ Dropped Huge Storage Unit. [Achievement: Just Browsing] [Achievement: Achiever] Map ----- +----------------------------------------------------+ | ?????????????????????# #""#????????????????????? | | ?????????????????????# ####????????????????????? | | ?????????????????????## ##???????????????????????? | | ??????????????????????# #????????????????#######?? | | ??????????????????????# #????#####???????# # #?? | | ??????????????????????# #????#!%[#???????# # #?? | | ??????????????????????# ###### = ######### #?? | | ??????????????????????# =* ##?? | | ??????????????????????## ! ########### #### ##??? | | ??????????????????????#""]""#????????# #??####???? | | ??????????????????????#######????????# #???#####?? | | ?????????????????????????????????????# #???# #?? | | ???????????????????????????????????### ##### #?? | | ???????????????????????????###?????# #?? | | ?????????????????????????#?# !?????# #?? | | ?????????????????????????# # ?????# ##########?? | | ?????????????????????????? #+##????# #??????????? | | ???????????????????????????+ ###??# #??????????? | | ???????????????????????????# " #?## ^#??????????? | | ?????????????????????????#+#"""####[^^#??????????? | | ?????????????????????????#%! %!%%%!+=%#??????????? | | ?????????????????????????#%%"""#####% #??????????? | | ?????????????????????????#%## #??# #??????????? | | ??????????????????# %????#s######??# #??????????? | | ?????????????## # ###!##??????# #??????????? | | ?????????????# *%!%%@YY######## #??????????? | | ????# =% !%!ps!!gp #??????????? | | ????# !!g!g!! #??????????? | | ??????######## # #!gs###########??????????? | | ?????????????# # g!#????????????????????? | | ???????????# ?^ g ????????????????????? | | ???????????# ^ ???????????????????? | | ???????????# ^ ???????????????????? | | ???????????# ^ ^ #??????????????????? | | ???????????### ##^ ^## ###??????????????????? | | ?????????????# ?# ?# #????????????????????? | | ?????????????# ?? ?? ????????????????????? | | ?????????????# ?? ?? ????????????????????? | | ?????????????#??? ??? ????????????????????? | | ???????????????? ##""??###+##????????????????????? | | ??????????????? ????????? ??????????????????????? | | ??????????????? ??????????#??????????????????????? | | ??????????????# ?????????????????????????????????? | | ?????????????????????????????????????????????????? | | ?????????????????????????????????????????????????? | | ?????????????????????????????????????????????????? | | ?????????????????????????????????????????????????? | | ?????????????????????????????????????????????????? | | ?????????????????????????????????????????????????? | | ?????????????????????????????????????????????????? | +----------------------------------------------------+ Best States ------------- Heat Dissipation 53 Energy Generation 18 Energy Capacity 300 Matter Stores 300 Matter Capacity 300 Sight Range 22 Terrain Scan Density 10 Base Temperature (-) 100 Armor Coverage 450 Evasion (%) 55 Targeting Accuracy 8 Recoil Reduction 4 Offensive Hacking 12 Relay Coupler Types 2 Relay Coupler Value 49 Item Schematics ----------------- None Robot Schematics ------------------ None Fabricated ------------ Nothing Alien Tech Used ----------------- None Achievements -------------- Achiever Assimilation Complete Error 47 Just Browsing We Are Legion Challenges ------------ None Game ------ Seed ExperimentalCobblerPlatform Manual? 0 Play Time 02:08:26 Cumulative 34.9 hours Start 2024.04.21 @ 17:18:31 End 2024.04.21 @ 21:19:14 Sessions 1 Manual Loads 0 Difficulty Rogue Special Mode None Game No. 21 Rogue 21 Adventurer 0 Explorer 0 Win Type - Total 1 Types 1/0/0/0/0/0/0/0/0 Lore% 20 Gallery% 25 Achievement% 26 Wizard Run 0 Options --------- Layout 2 ASCII 0 Keyboard 0 Movement Numpad Keybinds 0 Fullscreen 2 Font 24/Smallcaps Map View 50x44 Zoom Use 0% Tactical HUD 1 Map Filters NONE Filters NONE Steam 1 RUN: d9c76852-ca9c-4627-aea4-f9919a686d08